[Event "NM-Senior Hurtig 2018"]
[Site "Frimurer Logen, Norway"]
[Date "2018.11.10"]
[Round "1.7"]
[White "Ofstad, Per"]
[Black "Samskott, Arne"]
[Result "1-0"]
[TimeControl "20 + 10"]
[WhiteElo "2131"]
[BlackElo "1501"]

1. e4 {[%clk 00:20:03]} {[%emt 00:00:06]} e5 {[%clk 00:20:07]} {[%emt
00:00:04]} 2. Nf3 {[%clk 00:20:05]} {[%emt 00:00:07]} Nc6 {[%clk 00:20:14]}
{[%emt 00:00:04]} 3. d4 {[%clk 00:19:51]} {[%emt 00:00:24]} exd4 {[%clk
00:20:10]} {[%emt 00:00:14]} 4. Bc4 {[%clk 00:19:56]} {[%emt 00:00:05]} h6
{[%clk 00:20:00]} {[%emt 00:00:20]} 5. Nxd4 {[%clk 00:19:55]} {[%emt 00:00:10]}
Nf6 {[%clk 00:19:52]} {[%emt 00:00:18]} 6. O-O {[%clk 00:18:35]} {[%emt
00:01:30]} Ne5 {[%clk 00:19:34]} {[%emt 00:00:28]} 7. Bb3 {[%clk 00:17:16]}
{[%emt 00:01:29]} Bd6 {[%clk 00:19:17]} {[%emt 00:00:26]} 8. f4 {[%clk
00:16:43]} {[%emt 00:00:44]} Nfg4 {[%clk 00:11:17]} {[%emt 00:08:10]} 9. fxe5
{[%clk 00:15:56]} {[%emt 00:00:57]} Qh4 {[%clk 00:11:23]} {[%emt 00:00:04]} 10.
Bf4 {[%clk 00:13:03]} {[%emt 00:03:02]} Nxe5 {[%clk 00:09:32]} {[%emt
00:02:02]} 11. Bxe5 {[%clk 00:12:41]} {[%emt 00:00:32]} Bxe5 {[%clk 00:09:26]}
{[%emt 00:00:16]} 12. Nf3 {[%clk 00:12:26]} {[%emt 00:00:24]} Qf6 {[%clk
00:08:34]} {[%emt 00:01:01]} 13. Nxe5 {[%clk 00:11:47]} {[%emt 00:00:50]} Qxe5
{[%clk 00:08:37]} {[%emt 00:00:07]} 14. Nc3 {[%clk 00:09:35]} {[%emt 00:02:21]}
O-O {[%clk 00:08:27]} {[%emt 00:00:20]} 15. Rf5 {[%clk 00:08:31]} {[%emt
00:01:15]} Qe8 {[%clk 00:07:40]} {[%emt 00:00:57]} 16. Rf2 {[%clk 00:06:48]}
{[%emt 00:01:53]} d6 {[%clk 00:07:23]} {[%emt 00:00:27]} 17. Qd3 {[%clk
00:06:04]} {[%emt 00:00:54]} Be6 {[%clk 00:07:24]} {[%emt 00:00:09]} 18. Raf1
{[%clk 00:05:43]} {[%emt 00:00:31]} Bxb3 {[%clk 00:07:03]} {[%emt 00:00:32]} 19.
axb3 {[%clk 00:05:52]} {[%emt 00:00:01]} Rc8 {[%clk 00:06:16]} {[%emt
00:00:56]} 20. Nd5 {[%clk 00:05:06]} {[%emt 00:00:57]} Qe5 {[%clk 00:05:20]}
{[%emt 00:01:05]} 21. Rf5 {[%clk 00:04:28]} {[%emt 00:00:49]} Qe6 {[%clk
00:04:57]} {[%emt 00:00:32]} 22. Qh3 {[%clk 00:03:56]} {[%emt 00:00:43]} Qxe4
{[%clk 00:03:31]} {[%emt 00:01:36]} 23. Qf3 {[%clk 00:02:42]} {[%emt 00:01:23]}
Qxf3 {[%clk 00:03:25]} {[%emt 00:00:15]} 24. R1xf3 {[%clk 00:02:46]} {[%emt
00:00:08]} g6 {[%clk 00:02:10]} {[%emt 00:01:25]} 25. Ne7+ {[%clk 00:02:27]}
{[%emt 00:00:30]} Kg7 {[%clk 00:02:18]} {[%emt 00:00:02]} 26. Nxc8 {[%clk
00:02:33]} {[%emt 00:00:02]} gxf5 {[%clk 00:02:25]} {[%emt 00:00:05]} 27. Ne7
{[%clk 00:02:37]} {[%emt 00:00:06]} Re8 {[%clk 00:01:50]} {[%emt 00:00:44]} 28.
Nxf5+ {[%clk 00:02:44]} {[%emt 00:00:05]} Kh7 {[%clk 00:01:51]} {[%emt
00:00:08]} 29. Kf2 {[%clk 00:02:50]} {[%emt 00:00:05]} Re5 {[%clk 00:01:49]}
{[%emt 00:00:12]} 30. g4 {[%clk 00:02:34]} {[%emt 00:00:26]} Rd5 {[%clk
00:01:32]} {[%emt 00:00:25]} 31. Ke2 {[%clk 00:02:21]} {[%emt 00:00:25]} Re5+
{[%clk 00:01:38]} {[%emt 00:00:04]} 32. Re3 {[%clk 00:02:22]} {[%emt 00:00:08]}
Rc5 {[%clk 00:01:20]} {[%emt 00:00:28]} 33. c3 {[%clk 00:02:20]} {[%emt
00:00:13]} Ra5 {[%clk 00:01:21]} {[%emt 00:00:08]} 34. Rh3 {[%clk 00:02:11]}
{[%emt 00:00:19]} Ra2 {[%clk 00:01:18]} {[%emt 00:00:13]} 35. Rxh6+ {[%clk
00:02:18]} {[%emt 00:00:03]} Kg8 {[%clk 00:01:24]} {[%emt 00:00:03]} 36. Kd3
{[%clk 00:02:22]} {[%emt 00:00:07]} Rxb2 {[%clk 00:01:31]} {[%emt 00:00:02]} 37.
b4 {[%clk 00:02:28]} {[%emt 00:00:05]} Rf2 {[%clk 00:01:35]} {[%emt 00:00:05]}
38. h4 {[%clk 00:02:14]} {[%emt 00:00:25]} Rf3+ {[%clk 00:01:41]} {[%emt
00:00:04]} 39. Kc2 {[%clk 00:02:19]} {[%emt 00:00:05]} Rf2+ {[%clk 00:01:49]}
{[%emt 00:00:02]} 40. Kb3 {[%clk 00:02:27]} {[%emt 00:00:02]} Rf1 {[%clk
00:01:54]} {[%emt 00:00:05]} 41. Rh5 {[%clk 00:02:25]} {[%emt 00:00:12]} Rf4
{[%emt 00:00:13]} 42. Rg5+ {[%emt 00:00:04]} Kf8 {[%clk 00:01:43]} {[%emt
00:00:04]} 43. h5 {[%clk 00:02:32]} {[%emt 00:00:03]} a5 {[%clk 00:01:40]}
{[%emt 00:00:12]} 44. h6 {[%clk 00:02:39]} {[%emt 00:00:03]} Rf1 {[%clk
00:01:44]} {[%emt 00:00:06]} 45. h7 {[%clk 00:02:46]} {[%emt 00:00:04]} Rh1
{[%clk 00:01:44]} {[%emt 00:00:09]} 46. Rh5 {[%emt 00:00:17]} 1-0

[Event "NM-Senior Hurtig 2018"]
[Site "Frimurer Logen, Norway"]
[Date "2018.11.10"]
[Round "1.9"]
[White "Synnestvedt, Jan"]
[Black "Skaug, Thorbjørn"]
[Result "1-0"]
[TimeControl "20 + 10"]
[WhiteElo "1941"]
[BlackElo "1487"]

1. d4 {[%clk 00:20:06]} {[%emt 00:00:02]} b5 {[%clk 00:20:07]} {[%emt
00:00:03]} 2. Nf3 {[%clk 00:20:07]} {[%emt 00:00:10]} e6 {[%clk 00:20:09]}
{[%emt 00:00:08]} 3. Bf4 {[%clk 00:20:08]} {[%emt 00:00:09]} Bb7 {[%clk
00:20:06]} {[%emt 00:00:12]} 4. e3 {[%clk 00:20:16]} {[%emt 00:00:02]} b4
{[%clk 00:20:11]} {[%emt 00:00:04]} 5. Be2 {[%clk 00:20:02]} {[%emt 00:00:25]}
Nf6 {[%clk 00:20:11]} {[%emt 00:00:09]} 6. h3 {[%clk 00:20:11]} {[%emt
00:00:02]} d6 {[%clk 00:20:16]} {[%emt 00:00:05]} 7. O-O {[%clk 00:20:10]}
{[%emt 00:00:12]} Nbd7 {[%clk 00:20:22]} {[%emt 00:00:04]} 8. c4 {[%clk
00:19:10]} {[%emt 00:01:10]} c5 {[%clk 00:20:21]} {[%emt 00:00:10]} 9. dxc5
{[%clk 00:17:59]} {[%emt 00:01:21]} dxc5 {[%clk 00:20:07]} {[%emt 00:00:24]} 10.
Nbd2 {[%clk 00:18:07]} {[%emt 00:00:04]} Be7 {[%clk 00:20:08]} {[%emt
00:00:07]} 11. Qc2 {[%clk 00:18:11]} {[%emt 00:00:06]} Nf8 {[%clk 00:19:55]}
{[%emt 00:00:23]} 12. Rfd1 {[%clk 00:18:01]} {[%emt 00:00:20]} Qc8 {[%clk
00:19:47]} {[%emt 00:00:17]} 13. Bd3 {[%clk 00:17:21]} {[%emt 00:00:51]} Ng6
{[%clk 00:19:49]} {[%emt 00:00:08]} 14. Bh2 {[%clk 00:17:30]} {[%emt 00:00:02]}
O-O {[%clk 00:19:50]} {[%emt 00:00:08]} 15. Ne4 {[%clk 00:17:38]} {[%emt
00:00:03]} Rd8 {[%clk 00:19:35]} {[%emt 00:00:25]} 16. Kf1 {[%clk 00:17:13]}
{[%emt 00:00:36]} Nxe4 {[%clk 00:19:32]} {[%emt 00:00:12]} 17. Bxe4 {[%clk
00:17:21]} {[%emt 00:00:03]} Bxe4 {[%clk 00:19:24]} {[%emt 00:00:18]} 18. Qxe4
{[%clk 00:17:26]} {[%emt 00:00:05]} Rxd1+ {[%clk 00:19:14]} {[%emt 00:00:19]}
19. Rxd1 {[%clk 00:17:35]} {[%emt 00:00:02]} Qe8 {[%clk 00:18:51]} {[%emt
00:00:33]} 20. Ke2 {[%clk 00:16:55]} {[%emt 00:00:50]} Rd8 {[%clk 00:18:47]}
{[%emt 00:00:14]} 21. Rxd8 {[%clk 00:16:09]} {[%emt 00:00:56]} Qxd8 {[%clk
00:18:20]} {[%emt 00:00:37]} 22. b3 {[%clk 00:15:27]} {[%emt 00:00:53]} Qa5
{[%clk 00:18:08]} {[%emt 00:00:21]} 23. Qc2 {[%clk 00:15:32]} {[%emt 00:00:05]}
Qd8 {[%clk 00:18:07]} {[%emt 00:00:11]} 24. Qd2 {[%clk 00:14:22]} {[%emt
00:01:20]} Qxd2+ {[%clk 00:18:02]} {[%emt 00:00:16]} 25. Nxd2 {[%clk 00:14:27]}
{[%emt 00:00:05]} Kf8 {[%clk 00:17:43]} {[%emt 00:00:28]} 26. Ne4 {[%clk
00:14:36]} {[%emt 00:00:01]} Ke8 {[%clk 00:17:05]} {[%emt 00:00:48]} 27. Bb8
{[%clk 00:14:43]} {[%emt 00:00:02]} a6 {[%clk 00:17:09]} {[%emt 00:00:07]} 28.
Ba7 {[%clk 00:14:52]} {[%emt 00:00:02]} Kd7 {[%clk 00:16:59]} {[%emt 00:00:19]}
29. Bxc5 {[%clk 00:15:00]} {[%emt 00:00:02]} Kc6 {[%clk 00:16:32]} {[%emt
00:00:37]} 30. Bxe7 {[%clk 00:14:45]} {[%emt 00:00:25]} Nxe7 {[%clk 00:16:37]}
{[%emt 00:00:05]} 31. Ng5 {[%clk 00:14:53]} {[%emt 00:00:02]} 1-0

[Event "NM-Senior Hurtig 2018"]
[Site "Frimurer Logen, Norway"]
[Date "2018.11.10"]
[Round "1.10"]
[White "Taksrud, Vidar"]
[Black "Roksvold, Thore"]
[Result "1-0"]
[TimeControl "20 + 10"]
[WhiteElo "1861"]
[BlackElo "1446"]

1. d4 {[%clk 00:20:05]} {[%emt 00:00:04]} d5 {[%clk 00:20:06]} {[%emt
00:00:04]} 2. Nf3 {[%clk 00:20:13]} {[%emt 00:00:02]} e6 {[%clk 00:20:11]}
{[%emt 00:00:05]} 3. g3 {[%clk 00:20:19]} {[%emt 00:00:04]} f5 {[%clk
00:20:14]} {[%emt 00:00:07]} 4. c4 {[%clk 00:20:23]} {[%emt 00:00:07]} c6
{[%clk 00:20:21]} {[%emt 00:00:02]} 5. Bg2 {[%clk 00:20:31]} {[%emt 00:00:02]}
Nf6 {[%clk 00:20:27]} {[%emt 00:00:04]} 6. O-O {[%clk 00:20:35]} {[%emt
00:00:06]} Bd6 {[%clk 00:20:30]} {[%emt 00:00:07]} 7. Bg5 {[%clk 00:20:33]}
{[%emt 00:00:13]} O-O {[%clk 00:20:35]} {[%emt 00:00:05]} 8. Nbd2 {[%clk
00:20:29]} {[%emt 00:00:14]} Nbd7 {[%clk 00:18:46]} {[%emt 00:01:59]} 9. c5
{[%clk 00:20:12]} {[%emt 00:00:26]} Bc7 {[%clk 00:18:55]} {[%emt 00:00:02]} 10.
b4 {[%clk 00:20:20]} {[%emt 00:00:02]} h6 {[%clk 00:19:03]} {[%emt 00:00:02]}
11. Bf4 {[%clk 00:20:08]} {[%emt 00:00:22]} Bxf4 {[%clk 00:18:59]} {[%emt
00:00:15]} 12. gxf4 {[%clk 00:20:15]} {[%emt 00:00:02]} Ne4 {[%clk 00:18:00]}
{[%emt 00:01:10]} 13. Rc1 {[%clk 00:18:17]} {[%emt 00:02:08]} Ndf6 {[%clk
00:15:13]} {[%emt 00:02:57]} 14. Ne5 {[%clk 00:18:19]} {[%emt 00:00:08]} Ng4
{[%clk 00:14:58]} {[%emt 00:00:25]} 15. Nxg4 {[%clk 00:18:15]} {[%emt
00:00:14]} fxg4 {[%clk 00:15:03]} {[%emt 00:00:05]} 16. Nxe4 {[%clk 00:18:21]}
{[%emt 00:00:03]} dxe4 {[%clk 00:15:07]} {[%emt 00:00:07]} 17. e3 {[%clk
00:18:22]} {[%emt 00:00:10]} Qd5 {[%clk 00:14:38]} {[%emt 00:00:39]} 18. Qc2
{[%clk 00:18:08]} {[%emt 00:00:23]} Qh5 {[%clk 00:12:43]} {[%emt 00:02:06]} 19.
Bxe4 {[%clk 00:18:04]} {[%emt 00:00:14]} e5 {[%clk 00:11:31]} {[%emt 00:01:22]}
20. dxe5 {[%clk 00:16:21]} {[%emt 00:01:52]} Kh8 {[%clk 00:11:33]} {[%emt
00:00:08]} 21. Bg6 {[%clk 00:16:03]} {[%emt 00:00:28]} Qh3 {[%clk 00:10:58]}
{[%emt 00:00:46]} 22. f5 {[%clk 00:16:01]} {[%emt 00:00:10]} Qf3 {[%clk
00:09:57]} {[%emt 00:01:11]} 23. e6 {[%clk 00:16:00]} {[%emt 00:00:10]} Rf6
{[%clk 00:08:59]} {[%emt 00:01:08]} 24. Rcd1 {[%clk 00:15:52]} {[%emt
00:00:18]} Rxg6 {[%clk 00:09:00]} {[%emt 00:00:09]} 25. Rd8+ {[%clk 00:15:53]}
{[%emt 00:00:09]} 1-0

[Event "NM-Senior Hurtig 2018"]
[Site "Frimurer Logen, Norway"]
[Date "2018.11.10"]
[Round "1.11"]
[White "Simonsen, Steinar"]
[Black "Larsen, Arild"]
[Result "0-1"]
[TimeControl "20 + 10"]
[WhiteElo "1397"]
[BlackElo "1858"]

1. e4 {[%clk 00:20:04]} {[%emt 00:00:05]} e5 {[%clk 00:20:08]} {[%emt
00:00:03]} 2. Nf3 {[%clk 00:20:09]} {[%emt 00:00:05]} Nc6 {[%clk 00:20:17]} 3.
Nc3 {[%clk 00:20:16]} {[%emt 00:00:04]} Nf6 {[%clk 00:20:24]} {[%emt 00:00:03]}
4. Bb5 {[%clk 00:20:19]} {[%emt 00:00:07]} d6 {[%clk 00:20:23]} {[%emt
00:00:11]} 5. Bxc6+ {[%clk 00:19:46]} {[%emt 00:00:43]} bxc6 {[%clk 00:20:31]}
{[%emt 00:00:02]} 6. O-O {[%clk 00:19:41]} {[%emt 00:00:13]} Be7 {[%clk
00:20:38]} {[%emt 00:00:04]} 7. d4 {[%clk 00:19:45]} {[%emt 00:00:07]} Bg4
{[%clk 00:20:22]} {[%emt 00:00:26]} 8. h3 {[%clk 00:19:47]} {[%emt 00:00:07]}
Bxf3 {[%clk 00:20:21]} {[%emt 00:00:12]} 9. Qxf3 {[%clk 00:19:44]} {[%emt
00:00:13]} exd4 {[%clk 00:20:28]} {[%emt 00:00:03]} 10. Ne2 {[%clk 00:19:47]}
{[%emt 00:00:07]} c5 {[%clk 00:20:21]} {[%emt 00:00:18]} 11. c3 {[%clk
00:19:39]} {[%emt 00:00:17]} dxc3 {[%clk 00:20:13]} {[%emt 00:00:19]} 12. Nxc3
{[%clk 00:19:40]} {[%emt 00:00:08]} O-O {[%clk 00:20:16]} {[%emt 00:00:07]} 13.
Nd5 {[%clk 00:17:59]} {[%emt 00:01:51]} Nxd5 {[%clk 00:20:18]} {[%emt
00:00:08]} 14. exd5 {[%clk 00:18:06]} {[%emt 00:00:03]} Qd7 {[%clk 00:20:02]}
{[%emt 00:00:27]} 15. Bd2 {[%clk 00:17:25]} {[%emt 00:00:51]} Bf6 {[%clk
00:19:51]} {[%emt 00:00:20]} 16. Bc3 {[%clk 00:17:03]} {[%emt 00:00:32]} Bxc3
{[%clk 00:19:59]} {[%emt 00:00:03]} 17. Qxc3 {[%clk 00:16:36]} {[%emt
00:00:37]} Rfe8 {[%clk 00:19:50]} {[%emt 00:00:18]} 18. Rfe1 {[%clk 00:16:09]}
{[%emt 00:00:37]} Qf5 {[%clk 00:19:15]} {[%emt 00:00:45]} 19. Rxe8+ {[%clk
00:15:59]} {[%emt 00:00:20]} Rxe8 {[%clk 00:19:24]} {[%emt 00:00:02]} 20. Re1
{[%clk 00:15:33]} {[%emt 00:00:36]} Rxe1+ {[%clk 00:16:48]} {[%emt 00:02:46]}
21. Qxe1 {[%clk 00:15:37]} {[%emt 00:00:05]} Qe5 {[%clk 00:16:49]} {[%emt
00:00:10]} 22. Qxe5 {[%clk 00:15:31]} {[%emt 00:00:15]} dxe5 {[%clk 00:16:57]}
{[%emt 00:00:02]} 23. f3 {[%clk 00:13:47]} {[%emt 00:01:54]} Kf8 {[%clk
00:17:06]} {[%emt 00:00:02]} 24. Kf2 {[%clk 00:13:55]} {[%emt 00:00:02]} Ke7
{[%clk 00:17:15]} 25. Ke3 {[%clk 00:14:04]} {[%emt 00:00:03]} Kd6 {[%clk
00:17:24]} 26. g4 {[%clk 00:13:46]} {[%emt 00:00:26]} g6 {[%clk 00:17:32]}
{[%emt 00:00:04]} 27. Ke4 {[%clk 00:13:44]} {[%emt 00:00:11]} c4 {[%clk
00:17:18]} {[%emt 00:00:24]} 28. h4 {[%clk 00:12:40]} {[%emt 00:01:14]} f6
{[%clk 00:17:23]} {[%emt 00:00:05]} 29. h5 {[%clk 00:11:50]} {[%emt 00:01:00]}
f5+ {[%clk 00:15:57]} {[%emt 00:01:36]} 30. gxf5 {[%clk 00:11:42]} {[%emt
00:00:18]} gxh5 {[%clk 00:16:06]} {[%emt 00:00:02]} 31. f6 {[%clk 00:11:37]}
{[%emt 00:00:14]} h4 {[%clk 00:16:13]} {[%emt 00:00:04]} 32. f4 {[%clk
00:10:18]} {[%emt 00:01:29]} exf4 {[%clk 00:16:21]} {[%emt 00:00:02]} 33. Kxf4
{[%clk 00:10:24]} {[%emt 00:00:03]} h5 {[%clk 00:16:23]} {[%emt 00:00:08]} 34.
Kf5 {[%clk 00:10:22]} {[%emt 00:00:13]} h3 {[%clk 00:16:28]} {[%emt 00:00:04]}
35. Kg6 {[%clk 00:10:25]} {[%emt 00:00:07]} h2 {[%clk 00:16:34]} {[%emt
00:00:05]} 36. f7 {[%clk 00:09:40]} {[%emt 00:00:55]} h1=Q {[%clk 00:16:08]}
{[%emt 00:00:35]} 37. f8=Q+ {[%clk 00:09:42]} {[%emt 00:00:09]} Kxd5 {[%clk
00:16:17]} 38. Qa8+ {[%clk 00:09:24]} {[%emt 00:00:28]} c6 {[%clk 00:16:25]}
{[%emt 00:00:01]} 39. Qd8+ {[%clk 00:09:27]} {[%emt 00:00:06]} Ke4 {[%clk
00:16:15]} {[%emt 00:00:21]} 40. Qe7+ {[%clk 00:06:54]} {[%emt 00:02:42]} Kd3
{[%clk 00:16:07]} {[%emt 00:00:19]} 41. Qd7+ {[%clk 00:06:09]} {[%emt
00:00:56]} Qd5 {[%clk 00:16:05]} {[%emt 00:00:12]} 42. Qh3+ {[%clk 00:05:25]}
{[%emt 00:00:53]} Ke2 {[%clk 00:15:25]} {[%emt 00:00:51]} 43. Qh2+ {[%clk
00:04:57]} {[%emt 00:00:38]} Ke3 {[%clk 00:14:34]} {[%emt 00:01:01]} 44. Qg1+
{[%clk 00:04:48]} {[%emt 00:00:18]} Kf4 {[%clk 00:13:34]} {[%emt 00:01:11]} 45.
Qh2+ {[%clk 00:02:06]} {[%emt 00:02:52]} Ke4 {[%clk 00:13:29]} {[%emt
00:00:15]} 46. Qh1+ {[%clk 00:00:39]} {[%emt 00:01:37]} Kd4 {[%clk 00:13:16]}
{[%emt 00:00:24]} 47. Qg1+ {[%clk 00:00:40]} {[%emt 00:00:09]} Ke5 {[%clk
00:10:41]} {[%emt 00:02:45]} 0-1

[Event "NM-Senior Hurtig 2018"]
[Site "Frimurer Logen, Norway"]
[Date "2018.11.10"]
[Round "1.12"]
[White "Mella, Aage"]
[Black "Skogheim, Ole Morten"]
[Result "0-1"]
[TimeControl "20 + 10"]
[WhiteElo "1482"]
[BlackElo "1909"]

1. c4 {[%clk 00:19:58]} {[%emt 00:00:11]} e6 {[%clk 00:20:07]} {[%emt
00:00:04]} 2. g3 {[%clk 00:19:58]} {[%emt 00:00:11]} d5 {[%clk 00:20:15]}
{[%emt 00:00:02]} 3. Bg2 {[%clk 00:20:03]} {[%emt 00:00:05]} Nf6 {[%clk
00:20:21]} {[%emt 00:00:04]} 4. b3 {[%clk 00:20:00]} {[%emt 00:00:13]} c5
{[%clk 00:20:25]} {[%emt 00:00:06]} 5. e3 {[%clk 00:19:27]} {[%emt 00:00:44]}
Nc6 {[%clk 00:19:58]} {[%emt 00:00:36]} 6. Ne2 {[%clk 00:18:28]} {[%emt
00:01:09]} d4 {[%clk 00:18:37]} {[%emt 00:01:31]} 7. O-O {[%clk 00:16:04]}
{[%emt 00:02:33]} e5 {[%clk 00:16:40]} {[%emt 00:02:08]} 8. exd4 {[%clk
00:10:41]} {[%emt 00:05:33]} exd4 {[%clk 00:16:15]} {[%emt 00:00:35]} 9. Nf4
{[%clk 00:10:10]} {[%emt 00:00:40]} Be7 {[%clk 00:15:51]} {[%emt 00:00:33]} 10.
Re1 {[%clk 00:08:46]} {[%emt 00:01:34]} O-O {[%clk 00:15:55]} {[%emt 00:00:07]}
11. d3 {[%clk 00:08:30]} {[%emt 00:00:26]} Bf5 {[%clk 00:13:40]} {[%emt
00:02:25]} 12. h3 {[%clk 00:07:18]} {[%emt 00:01:23]} Bd6 {[%clk 00:13:03]}
{[%emt 00:00:47]} 13. g4 {[%clk 00:06:52]} {[%emt 00:00:35]} Bg6 {[%clk
00:10:26]} {[%emt 00:02:48]} 14. Nxg6 {[%clk 00:06:36]} {[%emt 00:00:26]} hxg6
{[%clk 00:10:30]} {[%emt 00:00:06]} 15. Bg5 {[%emt 00:00:15]} Qc7 {[%clk
00:09:51]} {[%emt 00:00:47]} 16. Nd2 {[%clk 00:06:10]} {[%emt 00:00:33]} Nh7
{[%clk 00:07:10]} {[%emt 00:02:51]} 17. Ne4 {[%clk 00:05:57]} {[%emt 00:00:23]}
Nxg5 {[%clk 00:07:06]} {[%emt 00:00:15]} 18. Nxg5 {[%clk 00:06:04]} {[%emt
00:00:02]} Bf4 {[%clk 00:07:08]} {[%emt 00:00:09]} 19. Nf3 {[%clk 00:05:55]}
{[%emt 00:00:19]} Rfe8 {[%emt 00:00:08]} 20. a3 {[%clk 00:05:14]} {[%emt
00:00:48]} Re7 {[%clk 00:07:02]} {[%emt 00:00:21]} 21. Rxe7 Qxe7 {[%clk
00:07:10]} 22. Qc2 {[%clk 00:05:02]} {[%emt 00:00:08]} Ne5 {[%clk 00:06:42]}
{[%emt 00:00:39]} 23. Kf1 {[%clk 00:03:33]} {[%emt 00:01:39]} Nxf3 {[%clk
00:06:40]} {[%emt 00:00:11]} 24. Bxf3 {[%clk 00:03:36]} {[%emt 00:00:07]} Re8
{[%clk 00:06:44]} {[%emt 00:00:06]} 25. Be4 {[%clk 00:02:41]} {[%emt 00:01:06]}
b6 {[%clk 00:05:56]} {[%emt 00:00:58]} 26. Re1 {[%clk 00:02:24]} {[%emt
00:00:26]} Kh8 {[%clk 00:05:06]} {[%emt 00:01:01]} 27. Re2 {[%clk 00:02:32]}
{[%emt 00:00:02]} 0-1